bitfinex/quotes_ETHUSD_20250731
["timestamp","ask_amount","ask_price","bid_price","bid_amount"]
[1753945547821,2.58197779,3873.0,3872.4,8.83662627]
[1753945548020,5.58211113,3872.8,3872.7,0.9006]
[1753945548234,3.0,3872.7,3872.4,4.033]
[1753945548432,3.0,3872.7,3872.6,0.9016]
[1753945548636,3.0,3872.8,3872.6,0.9016]
[1753945549016,3.0,3872.8,3872.6,0.001]
[1753945549224,3.0,3872.8,3872.7,0.9006]
[1753945549717,5.58211113,3872.8,3872.7,0.9006]
[1753945550258,3.2417944,3872.8,3872.7,0.9006]
[1753945550862,5.82390553,3872.8,3872.7,0.4658]
[1753945551083,5.5821778,3872.7,3872.6,0.001]
[1753945551228,5.8239722,3872.7,3872.6,0.001]
[1753945552071,0.2417944,3872.7,3872.6,0.001]
[1753945552227,0.2417944,3872.7,3872.6,0.4668]
[1753945552629,0.2417944,3872.7,3872.6,0.9016]
[1753945552830,3.0,3872.8,3872.6,0.9016]
[1753945553032,0.24191214,3872.7,3872.6,0.9016]
[1753945553244,3.0,3872.8,3872.6,0.9016]
[1753945553425,2.58212162,3872.8,3872.6,0.9016]
[1753945553654,2.5821778,3872.7,3872.6,0.4668]
[1753945553837,3.0,3872.8,3872.6,0.4668]
[1753945554032,2.58211726,3872.8,3872.6,0.001]
[1753945554367,3.0,3872.8,3872.6,0.001]
[1753945554665,2.58213928,3872.8,3872.6,0.001]
[1753945554826,2.5821778,3872.7,3872.6,0.001]
[1753945555256,0.24210721,3872.7,3872.6,0.001]
[1753945555429,0.24210826,3872.7,3872.6,0.4668]
[1753945555764,2.58213768,3872.8,3872.6,0.4668]
[1753945555943,2.58213768,3872.8,3872.6,0.9016]
[1753945556258,2.58212906,3872.8,3872.6,0.9016]
[1753945556447,0.2421275,3872.7,3872.6,0.4358]
[1753945556760,0.2421275,3872.7,3872.6,0.001]
[1753945557059,0.2421275,3872.7,3872.6,0.4668]
[1753945557259,0.2421275,3872.7,3872.6,0.9016]
[1753945557826,0.26643556,3873.0,3872.6,0.9016]
[1753945558026,0.48425519,3872.9,3872.7,5.70422627]
[1753945558262,0.48425519,3872.8,3872.7,4.80362627]
[1753945558965,0.24212693,3872.8,3872.7,0.9006]
[1753945559638,0.48422261,3872.8,3872.7,0.9006]
[1753945559843,0.48422261,3872.8,3872.7,0.4658]
[1753945560037,0.48420444,3872.8,3872.7,0.4658]
[1753945560228,0.48420444,3872.8,3872.7,5.70422627]
[1753945560428,0.48420444,3872.8,3872.7,9.71422627]
[1753945561836,0.48420444,3872.8,3872.7,12.29640407]
[1753945564187,0.48420444,3872.8,3872.7,4.9106]
[1753945566228,0.48420444,3872.8,3872.7,4.01]
[1753945567173,0.48420444,3872.8,3872.7,4.9195]
[1753945568377,0.48420444,3872.8,3872.7,9.72312627]
[1753945568690,0.48420444,3872.8,3872.7,10.9537663]
[1753945568890,0.48420444,3872.8,3872.7,13.5359441]
[1753945571055,0.24210876,3872.8,3872.7,13.5359441]
[1753945573477,0.24210876,3872.8,3872.7,10.9537663]
[1753945573681,0.24210876,3872.8,3872.7,13.5359441]
[1753945575529,0.24210876,3872.8,3872.7,9.72312627]
[1753945575806,0.24210876,3872.8,3872.7,4.01]
[1753945576461,0.4841099,3872.8,3872.7,4.01]
[1753945578196,0.4841099,3872.8,3872.7,4.4762]
[1753945578494,0.4841099,3872.8,3872.7,4.9195]
[1753945579758,0.4841099,3872.8,3872.7,8.47409043]
[1753945581530,0.47726715,3872.8,3872.7,8.47409043]
[1753945583024,0.24200114,3872.8,3872.7,8.47409043]
[1753945583518,0.4835,3873.3,3872.7,8.47409043]
[1753945583725,0.24200114,3873.2,3872.7,7.5016778]
[1753945583898,0.24200114,3873.1,3872.7,7.5016778]
[1753945584100,0.24200114,3873.0,3872.7,4.9195]
[1753945584429,0.24200114,3872.9,3872.7,4.9195]
[1753945584629,0.24200114,3872.8,3872.7,6.5921778]
[1753945584825,0.24200114,3872.8,3872.7,5.40791678]
[1753945585012,0.24206872,3872.8,3872.7,5.40791678]
[1753945585214,0.24206872,3872.8,3872.7,6.31741678]
[1753945585525,0.24206872,3872.8,3872.7,5.40791678]
[1753945585725,0.4835,3873.1,3872.7,4.01]
[1753945586029,0.72556872,3873.0,3872.7,4.01]
[1753945586200,0.24206872,3872.9,3872.7,4.01]
[1753945586402,0.72556872,3872.8,3872.7,4.01]
[1753945587725,0.24206872,3872.8,3872.7,4.01]
[1753945588909,0.24206872,3872.9,3872.7,4.9195]
[1753945589108,0.24206872,3872.8,3872.7,4.9195]
[1753945589842,0.24206872,3872.8,3872.7,7.0583778]
[1753945590037,0.24206872,3872.8,3872.7,8.68797821]
[1753945590236,0.24209712,3872.8,3872.7,6.10580041]
[1753945590634,0.24209712,3872.8,3872.7,5.19630041]
[1753945590941,0.24209712,3872.8,3872.7,4.01]
[1753945592407,0.24209712,3873.0,3872.7,4.01]
[1753945592613,0.72559712,3872.9,3872.7,4.01]
[1753945592943,0.24209712,3872.8,3872.7,4.01]
[1753945593623,0.4841971,3872.8,3872.7,4.01]
[1753945594745,0.48418921,3872.8,3872.7,4.01]
[1753945597251,0.48419455,3872.8,3872.7,4.01]
[1753945597690,0.94589455,3872.8,3872.7,4.01]
[1753945597852,0.70379712,3872.8,3872.7,4.01]
[1753945598046,0.94591644,3872.8,3872.7,4.01]
[1753945598354,0.4842319,3872.8,3872.7,4.01]
[1753945600195,0.9459319,3872.8,3872.7,4.01]
[1753945601377,0.4842319,3872.8,3872.7,12.32950407]
[1753945601578,0.4842319,3872.8,3872.7,13.56255448]
[1753945602177,0.4842319,3872.8,3872.7,5.24305041]
[1753945602369,0.4842319,3872.8,3872.7,4.01]
[1753945603303,0.4842319,3872.8,3872.7,4.4897]
[1753945603501,0.4842319,3872.8,3872.7,4.9437]
[1753945603669,0.24211595,3872.8,3872.7,4.9437]
[1753945604605,0.4842977,3872.8,3872.7,4.9437]
[1753945604792,0.48439202,3872.8,3872.7,4.9437]
[1753945606379,0.48446843,3872.8,3872.7,4.9437]
[1753945606797,0.48446843,3872.8,3872.7,4.01]
[1753945608007,0.48446843,3872.8,3872.7,4.4897]
[1753945608188,0.48446843,3872.8,3872.7,4.9437]
[1753945614294,0.48446843,3872.8,3872.7,4.026]
[1753945615288,0.4845901,3872.8,3872.7,4.026]
[1753945617115,0.4845901,3872.8,3872.6,0.001]
[1753945617315,0.4845901,3872.7,3872.6,3.947]
[1753945618087,0.48471631,3872.7,3872.6,3.947]
[1753945618287,3.4617,3873.0,3872.6,3.947]
[1753945618587,0.4617,3872.9,3872.6,3.947]
[1753945618784,3.24235771,3872.8,3872.6,3.947]
[1753945619019,6.28623551,3872.7,3872.6,0.001]
[1753945619522,6.0438778,3872.7,3872.6,0.001]
[1753945619717,6.5286166,3872.7,3872.4,3.946]
[1753945619913,6.28625494,3872.7,3872.4,3.946]
[1753945620218,3.7040694,3872.7,3872.4,3.946]
[1753945620413,0.48476218,3872.6,3872.4,3.946]
[1753945620613,0.48476218,3872.5,3872.4,4.8797]
[1753945622125,0.48476218,3872.5,3872.4,0.9337]
[1753945622327,0.48476218,3872.5,3872.4,4.8797]
[1753945624637,0.48476218,3872.5,3872.4,3.946]
[1753945625143,0.48476218,3872.5,3872.4,4.4414]
[1753945625337,0.48476218,3872.5,3872.4,4.4424]
[1753945625540,0.48476218,3872.5,3872.4,4.9026]
[1753945626104,0.24238109,3872.5,3872.4,4.9026]
[1753945626539,0.24238109,3872.5,3872.4,8.9722952]
[1753945627029,0.24238109,3872.5,3872.4,3.947]
[1753945627217,0.24238109,3872.5,3872.4,4.9026]
[1753945627540,0.48447916,3872.5,3872.4,4.9026]
[1753945628706,0.24238109,3872.5,3872.4,4.9026]
[1753945628957,0.48445098,3872.5,3872.4,4.9026]
[1753945629235,0.24238109,3872.5,3872.4,4.9026]
[1753945629562,0.24238109,3872.5,3872.4,3.947]
[1753945629902,0.24238109,3872.5,3872.4,4.9026]
[1753945630366,0.24238109,3872.5,3872.4,3.947]
[1753945630652,5.82469225,3872.5,3872.4,3.947]
[1753945631252,3.24238109,3872.5,3872.4,3.947]
[1753945631408,5.82469225,3872.5,3872.4,3.947]
[1753945631740,6.5373695,3872.5,3872.4,3.947]
[1753945632146,6.9605695,3872.5,3872.4,0.001]
[1753945632810,6.5373695,3872.5,3872.4,0.001]
[1753945634029,6.9605695,3872.5,3872.4,0.001]
[1753945636043,5.58237785,3872.4,3872.3,0.001]
[1753945636343,6.06683619,3872.4,3872.3,0.001]
[1753945636550,6.53743619,3872.4,3872.3,0.001]
[1753945636912,5.58244454,3872.3,3872.2,0.001]
[1753945637111,10.48350288,3872.3,3872.2,0.001]
[1753945637547,6.53750288,3872.3,3872.2,0.001]
[1753945637760,6.06690288,3872.3,3872.2,0.9566]
[1753945638054,6.06690288,3872.3,3872.2,0.001]
[1753945638367,3.48445834,3872.3,3872.2,0.001]
[1753945638524,6.06690288,3872.3,3872.2,0.001]
[1753945639274,3.48445834,3872.3,3872.2,0.001]
[1753945639429,3.48445834,3872.3,3872.2,0.9566]
[1753945639967,3.24238109,3872.3,3872.2,0.9566]
[1753945640334,0.24238109,3872.3,3872.2,8.3427375]
[1753945640534,0.24194513,3872.3,3872.2,10.79875905]
[1753945641442,0.24194513,3872.3,3872.2,0.9566]
[1753945641656,0.24194513,3872.3,3872.2,4.9026]
[1753945643543,0.24201445,3872.3,3872.2,4.9026]
[1753945645273,0.24201445,3872.3,3872.2,0.001]
[1753945645478,3.06651545,3872.3,3872.2,0.001]
[1753945645647,3.53711545,3872.3,3871.9,3.946]
[1753945645861,6.06659846,3872.2,3871.9,4.9016]
[1753945646043,0.48407091,3872.1,3871.9,3.946]
[1753945646275,0.48407091,3872.0,3871.9,3.946]
[1753945646476,0.48407091,3872.0,3871.9,4.9016]
[1753945647352,0.24201445,3872.0,3871.9,4.9016]
[1753945648052,0.24201445,3872.0,3871.9,9.70522627]
[1753945648248,0.24201445,3872.0,3871.9,13.77512575]
[1753945648562,0.24201445,3872.0,3871.9,11.19241442]
[1753945650468,0.24201445,3872.0,3871.9,13.77512575]
[1753945650673,0.24201445,3872.0,3871.9,11.19241442]
[1753945651376,0.24201445,3872.0,3871.9,13.77512575]
[1753945654683,0.24201445,3872.0,3871.9,11.19241442]
[1753945659008,0.24201445,3872.0,3871.9,7.24641442]
[1753945659177,0.24201445,3872.0,3871.9,3.945]
[1753945659709,0.24201445,3872.0,3871.9,4.4235]
[1753945660098,0.24201445,3872.0,3871.9,4.8654]
[1753945661501,6.28110293,3872.5,3871.9,4.8654]
[1753945661702,0.48433278,3872.4,3871.9,4.8654]
[1753945661905,0.48433278,3872.3,3871.9,3.945]
[1753945662206,0.48433278,3872.2,3871.9,3.945]
[1753945662396,0.24216639,3872.1,3872.0,0.4785]
[1753945663002,0.24216639,3872.1,3872.0,4.4235]
[1753945664024,0.24216639,3872.1,3872.0,4.8654]
[1753945666232,0.24216639,3872.1,3872.0,10.6360289]
[1753945666724,0.24216639,3872.1,3872.0,13.21867352]
[1753945679649,0.24216821,3872.1,3872.0,13.21867352]
[1753945680005,0.24216888,3872.1,3872.0,13.21867352]
[1753945680643,0.24216888,3872.1,3872.0,10.6360289]
[1753945680808,0.002,3872.2,3872.0,10.6360289]
[1753945681302,0.002,3872.2,3872.1,0.4785]
[1753945681523,0.002,3872.2,3872.1,2.58257792]
[1753945681733,0.24417301,3872.2,3872.1,4.8644]
[1753945682016,0.002,3872.2,3872.1,12.25060419]
[1753945682222,0.2441704,3872.2,3872.1,7.44697792]
[1753945682416,0.2441704,3872.2,3872.1,12.25060419]
[1753945682736,0.2441704,3872.2,3872.1,4.4225]
[1753945682939,0.2441704,3872.2,3872.1,3.944]
[1753945683445,0.24415516,3872.2,3872.1,3.944]
[1753945684217,0.69775516,3872.2,3872.1,3.944]
[1753945685622,0.24415516,3872.2,3872.1,3.944]
[1753945686637,0.002,3872.2,3872.1,3.944]
[1753945686843,0.24413675,3872.2,3872.1,3.944]
[1753945687521,0.69773675,3872.2,3872.1,3.944]
[1753945688510,0.24413675,3872.2,3872.1,3.944]
[1753945689339,0.24413675,3872.2,3872.1,8.74762627]
[1753945689636,0.24413675,3872.2,3872.1,9.69452627]
[1753945691350,0.24413675,3872.2,3872.1,3.944]
[1753945694951,0.69773675,3872.2,3872.1,3.944]
[1753945695322,0.24413675,3872.2,3872.1,3.944]
[1753945695541,0.24413675,3872.2,3872.1,4.8909]
[1753945696252,0.2443009,3872.2,3872.1,4.8909]
[1753945696926,0.2443009,3872.2,3872.1,3.944]
[1753945698770,0.2443009,3872.2,3872.1,7.47347792]
[1753945698926,0.2443009,3872.2,3872.1,4.8909]
[1753945699125,0.2443009,3872.2,3872.1,3.944]
[1753945707073,0.24434272,3872.2,3872.1,3.944]
[1753945709137,0.69794272,3872.2,3872.1,3.944]
[1753945709336,0.24434272,3872.2,3872.1,3.944]
[1753945711672,0.24434272,3872.2,3872.1,4.4169]
[1753945712476,0.24434272,3872.2,3872.1,4.8909]
[1753945713762,0.24434272,3872.2,3872.1,4.8919]
[1753945714768,0.24434272,3872.2,3872.1,8.73812463]
[1753945715701,0.24434272,3872.2,3872.1,4.8919]
[1753945715862,0.002,3872.2,3872.1,8.73812463]
[1753945716064,0.24437022,3872.2,3872.1,8.73812463]
[1753945716997,0.24437022,3872.2,3872.1,11.32070255]
[1753945717429,0.24437022,3872.2,3872.1,12.71124345]
[1753945720894,0.24437022,3872.2,3872.1,13.67185218]
[1753945725484,0.24437022,3872.2,3872.1,12.67185218]
[1753945729019,0.002,3872.6,3872.5,2.58231116]
[1753945729194,0.002,3872.6,3872.5,11.52814452]
[1753945729393,0.002,3872.6,3872.5,13.9629679]
[1753945729898,0.002,3872.6,3872.5,14.5129679]
[1753945730222,0.002,3872.6,3872.5,13.9629679]
[1753945730993,0.002,3872.6,3872.5,13.0322679]
[1753945731224,0.002,3872.6,3872.5,13.9629679]
[1753945743140,0.73607165,3872.6,3872.2,2.58251123]
[1753945743436,0.73407165,3872.5,3872.3,6.52140153]
[1753945743605,0.24167165,3872.4,3872.3,6.52140153]
[1753945744329,0.24167165,3872.4,3872.3,7.91268205]
[1753945744509,0.24167165,3872.4,3872.3,8.83768205]
[1753945746637,0.24167165,3872.4,3872.3,4.89868205]
[1753945747012,0.24167165,3872.4,3872.3,8.83768205]
[1753945749115,0.002,3872.6,3872.5,2.58231116]
[1753945749348,0.24380303,3872.6,3872.5,12.95082718]
[1753945749714,0.24380303,3872.6,3872.5,13.87582718]
[1753945751349,0.24384282,3872.6,3872.5,13.87582718]
[1753945756358,0.002,3872.8,3872.6,2.58224448]
[1753945756522,0.002,3872.8,3872.7,3.992]
[1753945756721,0.002,3872.8,3872.7,8.89205385]
[1753945760024,0.002,3872.8,3872.7,9.44205385]
[1753945760225,0.002,3873.0,3872.9,2.58204446]
[1753945760425,0.002,3873.0,3872.9,11.45987782]
[1753945760618,0.002,3873.0,3872.9,12.38487782]
[1753945760824,0.002,3873.0,3872.9,14.27909544]
[1753945762138,0.002,3873.0,3872.9,10.77205098]
[1753945763264,0.002,3873.0,3872.6,4.80683336]
[1753945763466,0.9156,3872.9,3872.1,0.001]
[1753945763782,0.9156,3872.8,3872.2,3.938]
[1753945763929,0.002,3873.0,3872.4,4.80683336]
[1753945764128,0.9156,3872.7,3872.5,3.938]
[1753945764459,0.9156,3872.6,3872.5,3.938]
[1753945765390,0.9156,3872.6,3872.5,3.937]
[1753945765546,0.4924,3872.8,3872.4,4.80683336]
[1753945765873,0.002,3873.0,3872.8,2.58206399]
[1753945766074,0.002,3873.0,3872.9,3.938]
[1753945766972,0.002,3873.0,3872.9,6.52004446]
[1753945767666,0.002,3873.0,3872.9,7.44504446]
[1753945768174,0.24391381,3873.0,3872.9,7.44504446]
[1753945770144,0.24391381,3873.0,3872.9,6.52004446]
[1753945770350,0.24391381,3873.0,3872.9,8.05927923]
[1753945773242,0.24390507,3873.0,3872.9,8.05927923]
[1753945774387,0.24390507,3873.0,3872.9,9.00507923]
[1753945775049,0.24391203,3873.0,3872.9,9.00507923]
[1753945775450,0.24391203,3873.0,3872.9,8.05927923]
[1753945776267,0.24391203,3873.0,3872.9,8.53037923]
[1753945777292,0.24391203,3873.0,3872.9,8.05927923]
[1753945778756,0.24391203,3873.0,3872.9,9.00507923]
[1753945783498,0.24391203,3873.0,3872.9,8.05927923]
[1753945784769,0.24391203,3873.0,3872.9,8.53397923]
[1753945784969,0.24391203,3873.0,3872.9,9.00507923]
[1753945785778,0.24391203,3873.0,3872.9,8.05927923]
[1753945789211,0.24391203,3873.0,3872.9,8.53037923]
[1753945789612,0.24391203,3873.0,3872.9,4.12127923]
[1753945789817,0.24391203,3873.0,3872.9,11.32487782]
[1753945791676,0.73391203,3873.0,3872.9,11.32487782]
[1753945794118,0.73391203,3873.0,3872.9,6.51704446]
[1753945795021,0.73403267,3873.0,3872.9,6.51704446]
[1753945796432,0.24403267,3873.0,3872.9,6.51704446]
[1753945796597,0.24403267,3873.0,3872.9,8.02635989]
[1753945797547,0.24403267,3873.0,3872.9,7.55165989]
[1753945800142,0.24403267,3873.0,3872.9,7.08055989]
[1753945800354,0.24403267,3873.0,3872.9,8.02635989]
[1753945802961,0.002,3873.0,3872.9,8.02635989]
[1753945803103,0.24418513,3873.0,3872.9,8.02635989]
[1753945803441,0.24418513,3873.0,3872.9,7.46284446]
[1753945821192,0.24418513,3873.0,3872.9,12.26967782]
[1753945829100,0.24418513,3873.0,3872.9,2.58204446]
[1753945829305,0.72188513,3873.0,3872.9,6.51504446]
[1753945833897,0.24418513,3873.0,3872.9,6.51504446]
[1753945834614,0.24418513,3873.0,3872.9,6.97464446]
[1753945834821,0.24418513,3873.0,3872.9,8.39457269]
[1753945837618,0.24418513,3873.0,3872.9,7.47457269]
[1753945837915,0.24418513,3873.0,3872.9,6.51504446]
[1753945839887,0.70758513,3873.0,3872.9,6.51504446]
[1753945840919,0.24418513,3873.0,3872.9,6.51504446]
[1753945844425,0.24418513,3873.0,3872.9,6.97464446]
[1753945844730,0.24423669,3873.0,3872.9,6.97464446]
[1753945845731,0.24423669,3873.0,3872.9,7.43504446]
[1753945847344,0.24422582,3873.0,3872.9,7.43504446]
[1753945848743,0.24422582,3873.0,3872.9,6.51504446]
[1753945851459,0.24419019,3873.0,3872.9,6.51504446]
[1753945859598,0.002,3873.0,3872.9,6.51504446]
[1753945859809,0.24418821,3873.0,3872.9,6.51504446]
[1753945863024,0.24418421,3873.0,3872.9,6.96894446]
[1753945863228,0.24418421,3873.0,3872.9,7.41384446]
[1753945863389,0.24418099,3873.0,3872.9,7.41384446]
[1753945864022,0.24418099,3873.0,3872.9,6.51504446]
[1753945864585,0.24418099,3873.0,3872.8,4.80783336]
[1753945864792,0.24218099,3872.9,3872.8,4.80783336]
[1753945865217,0.71938099,3872.9,3872.8,8.73783336]
[1753945866830,0.24218099,3872.9,3872.8,11.31994449]
[1753945867027,0.24218099,3872.9,3872.8,4.80783336]
[1753945867391,0.24218099,3872.9,3872.8,3.931]
[1753945867792,0.71938099,3872.9,3872.8,3.931]
[1753945869292,0.87511041,3872.9,3872.8,3.931]
[1753945870530,0.39791041,3872.9,3872.8,3.931]
[1753945870697,0.24218099,3872.9,3872.8,3.931]
[1753945875720,0.24218099,3872.9,3872.8,0.001]
[1753945879866,0.24218099,3872.9,3872.8,0.8998]
[1753945880830,0.24218099,3872.9,3872.8,4.74453049]
[1753945884373,0.24218099,3872.9,3872.8,7.32664162]
[1753945884574,0.24218099,3872.9,3872.8,8.71042469]
[1753945888903,0.24418099,3872.9,3872.8,8.71042469]
[1753945890701,0.24418099,3872.9,3872.8,3.84573049]
[1753945890890,0.24418099,3872.9,3872.8,7.77373049]
[1753945891206,0.24418099,3872.9,3872.8,8.22763049]
[1753945891407,0.24418099,3872.9,3872.8,8.67253049]
[1753945891606,0.24418099,3872.9,3872.8,11.25464162]
[1753945891775,0.24418099,3872.9,3872.8,8.67253049]
[1753945892803,0.24418099,3872.9,3872.8,11.25464162]
[1753945897346,0.24418099,3872.9,3872.8,12.89654825]
[1753945899917,0.24432594,3872.9,3872.8,12.89654825]
[1753945901258,0.24432594,3872.9,3872.8,11.99774825]
[1753945901465,0.24432594,3872.9,3872.8,10.35584162]
[1753945902162,0.24432594,3872.9,3872.8,11.27654162]
[1753945904649,0.24432594,3872.9,3872.8,7.77373049]
[1753945905559,0.24432594,3872.9,3872.8,10.35584162]
[1753945905736,0.24432594,3872.9,3872.8,8.22873049]
[1753945905939,0.24432594,3872.9,3872.8,10.81084162]
[1753945906157,0.24432594,3872.9,3872.8,10.35584162]
[1753945907455,0.24432594,3872.9,3872.8,10.81084162]
[1753945907652,0.24432594,3872.9,3872.8,10.35584162]
[1753945907861,0.24432594,3872.9,3872.8,10.35384162]
[1753945908043,0.74172594,3872.9,3872.8,7.77173049]
[1753945908469,0.24432594,3872.9,3872.8,7.77173049]
[1753945910469,0.24432594,3872.9,3872.8,3.84573049]
[1753945910646,0.74172594,3872.9,3872.8,7.77173049]
[1753945910847,0.74172594,3872.9,3872.8,0.001]
[1753945911084,1.16492594,3872.9,3872.8,0.001]
[1753945911268,1.16492594,3872.9,3872.8,3.927]
[1753945911448,1.94096694,3872.9,3872.8,3.927]
[1753945912018,1.51776694,3872.9,3872.8,3.927]
[1753945912281,1.51776694,3872.9,3872.8,0.001]
[1753945912443,1.71226363,3872.9,3872.8,0.001]
[1753945912779,1.71211235,3872.9,3872.8,0.001]
[1753945912988,1.87392455,3872.9,3872.8,0.001]
[1753945915575,1.87389672,3872.9,3872.8,0.001]
[1753945917107,2.29709672,3872.9,3872.8,0.001]
[1753945917607,1.87389672,3872.9,3872.8,0.001]
[1753945919005,1.37649672,3872.9,3872.8,0.001]
[1753945919306,1.18200003,3872.9,3872.8,0.001]
[1753945919889,0.40595903,3872.9,3872.8,0.001]
[1753945920904,0.40595903,3872.9,3872.8,3.50381113]
[1753945921413,0.40591775,3872.9,3872.8,3.50381113]
[1753945922778,0.40591775,3872.9,3872.8,12.23437789]
[1753945923324,0.40591775,3872.9,3872.8,7.42881113]
[1753945923708,0.1638122,3872.9,3872.8,7.42881113]
[1753945924097,0.40591608,3872.9,3872.8,7.42881113]
[1753945925410,0.40591608,3872.9,3872.8,4.8467]
[1753945925924,0.40591608,3872.9,3872.8,3.926]
[1753945926813,0.86011608,3872.9,3872.8,0.001]
[1753945927704,1.10223657,3872.9,3872.8,0.001]
[1753945927903,1.51336555,3872.9,3872.8,0.001]
[1753945929850,7.09541001,3872.9,3872.8,0.001]
[1753945930141,7.09538128,3872.9,3872.8,0.001]
[1753945930328,7.51858128,3872.9,3872.8,0.001]
[1753945932747,11.44258128,3872.9,3872.8,0.001]
[1753945935872,11.44225026,3872.9,3872.8,0.001]
[1753945938345,11.63526559,3872.9,3872.8,0.001]
[1753945939739,7.28806559,3872.9,3872.8,0.001]
[1753945939969,11.21206559,3872.9,3872.8,0.001]
[1753945941475,11.63526559,3872.9,3872.8,0.001]
[1753945942080,11.21206559,3872.9,3872.8,0.001]
[1753945944786,10.75786559,3872.9,3872.8,0.001]
[1753945945301,10.75786559,3872.9,3872.4,0.001]
[1753945945302,5.58213622,3872.8,3872.4,0.001]
[1753945945494,3.0,3872.6,3872.4,0.4943]
[1753945945695,0.24193231,3872.5,3872.4,0.9403]
[1753945946098,0.24193231,3872.5,3872.4,0.4943]
[1753945946288,3.48374236,3872.5,3872.4,0.001]
[1753945948179,7.40774236,3872.5,3872.4,0.001]
[1753945948408,10.4011825,3872.5,3872.4,0.001]
[1753945948609,7.81887134,3872.5,3872.4,0.001]
[1753945949701,7.81887134,3872.5,3872.4,0.9403]
[1753945951401,7.98474385,3872.5,3872.4,0.9403]
[1753945951826,10.56705501,3872.5,3872.4,0.001]
[1753945952227,7.98474385,3872.5,3872.4,0.001]
[1753945952410,4.06074385,3872.5,3872.4,0.001]
[1753945952616,7.98374385,3872.5,3872.4,0.001]
[1753945952845,7.98374385,3872.5,3872.4,0.9403]
[1753945956344,7.98389095,3872.5,3872.4,0.9403]
[1753945957298,7.98389095,3872.5,3872.4,0.001]
[1753945957898,10.56620211,3872.5,3872.4,0.001]
[1753945958668,11.48090211,3872.5,3872.4,0.001]
[1753945958868,12.27450211,3872.5,3872.4,0.001]
[1753945959249,11.05791644,3872.5,3872.4,0.001]
[1753945959447,2.58237785,3872.4,3872.3,0.001]
[1753945959652,3.55228545,3872.4,3872.3,0.001]
[1753945959883,0.9699076,3872.4,3872.3,0.9361]
[1753945960065,4.40710379,3872.4,3872.3,0.9361]
[1753945962299,0.48410379,3872.4,3872.3,0.9361]
[1753945963997,0.48410379,3872.4,3872.3,5.74336323]
[1753945965295,0.48410379,3872.4,3872.3,0.9361]
[1753945972576,0.48410379,3872.4,3872.3,3.51854454]
[1753945972871,0.48410379,3872.4,3872.3,5.00178306]
[1753945973976,0.15527475,3872.7,3872.4,2.5823287]
[1753945974300,0.002,3872.9,3872.4,2.5823287]
[1753945974301,0.002,3872.9,3872.6,4.80726323]
[1753945974471,0.48440646,3872.8,3872.6,4.80726323]
[1753945974679,0.48440646,3872.7,3872.6,4.80726323]
[1753945975313,0.48440646,3872.7,3872.6,5.74236323]
[1753945977023,0.4843713,3872.7,3872.6,5.74236323]
[1753945979019,0.4843713,3872.7,3872.6,9.54937469]
[1753945979418,0.4843713,3872.7,3872.6,6.96713021]
[1753945979622,0.4843713,3872.7,3872.6,5.74236323]
[1753945980213,0.4843713,3872.7,3872.6,8.32460771]
[1753945980817,0.48432191,3872.7,3872.6,5.74236323]
[1753945981337,0.48432191,3872.7,3872.6,8.32460771]
[1753945981540,0.48432191,3872.7,3872.6,5.74236323]
[1753945984127,0.002,3872.8,3872.3,4.80826323]
[1753945984444,0.7312781,3872.8,3872.4,4.3737]
[1753945984602,0.7312781,3872.8,3872.3,5.27886323]
[1753945984603,0.4872,3872.7,3872.3,0.001]
[1753945984922,3.4926133,3872.7,3872.3,0.001]
[1753945985125,2.58226842,3872.6,3872.4,3.92]
[1753945985301,0.48417928,3872.5,3872.4,3.92]
[1753945985501,0.72928964,3872.5,3872.4,3.92]
[1753945985903,0.48416586,3872.5,3872.4,3.92]
[1753945986338,0.24208293,3872.5,3872.4,3.92]
[1753945986525,0.4841634,3872.5,3872.4,3.92]
[1753945986720,0.4841634,3872.5,3872.4,4.8443]
[1753945987337,0.48416329,3872.5,3872.4,4.8443]
[1753945988441,0.48416745,3872.5,3872.4,4.8443]
[1753945989940,0.48420225,3872.5,3872.4,4.8443]
[1753945992059,0.63851137,3872.5,3872.4,4.8443]
[1753945996254,0.63865855,3872.5,3872.4,4.8443]
[1753945997761,0.63865855,3872.5,3872.4,4.3737]
[1753945997965,0.63865855,3872.5,3872.4,3.92]
[1753946002764,0.63865855,3872.5,3872.4,4.3737]
[1753946002965,0.63865855,3872.5,3872.4,3.92]
[1753946003468,0.63865855,3872.5,3872.4,4.8443]
[1753946005370,0.63865855,3872.5,3872.4,3.92]
[1753946008697,0.63865855,3872.5,3872.3,0.001]
[1753946008843,0.48434943,3872.4,3872.3,0.4547]
[1753946009037,0.48434943,3872.4,3872.3,4.3737]
[1753946009804,0.48459926,3872.4,3872.3,4.3737]
[1753946011637,0.48459926,3872.4,3872.3,4.8443]
[1753946011876,0.48459926,3872.4,3872.3,4.3737]
[1753946012293,0.48459926,3872.4,3872.3,3.92]
[1753946012937,0.48459926,3872.4,3872.3,0.001]
[1753946013248,3.97210155,3872.4,3872.3,0.001]
[1753946013442,8.15610155,3872.4,3872.3,0.001]
[1753946013958,3.37051123,3872.2,3872.1,0.001]
[1753946014310,3.85511049,3872.2,3872.1,0.001]
[1753946014596,3.0,3872.1,3872.0,0.001]
[1753946014769,6.52678553,3872.1,3872.0,0.001]
[1753946019388,6.52660662,3872.1,3872.0,0.001]
[1753946019899,3.9440287,3872.1,3872.0,0.001]
[1753946020097,0.9440287,3872.1,3872.0,0.001]
[1753946020399,3.9440287,3872.1,3872.0,0.001]
[1753946021598,0.9440287,3872.1,3872.0,0.001]
[1753946021800,0.24226368,3872.1,3872.0,5.1694]
[1753946023497,0.48439495,3872.1,3872.0,5.1694]
[1753946026407,0.48417052,3872.1,3872.0,5.1694]
[1753946028114,0.24208526,3872.1,3872.0,5.1694]
[1753946028474,0.4841521,3872.1,3872.0,5.1694]
[1753946033308,0.48415542,3872.1,3872.0,5.1694]
[1753946043245,0.48415542,3872.1,3872.0,4.252]
[1753946043400,0.48415542,3872.1,3872.0,6.06962632]
[1753946044636,0.48615542,3872.1,3872.0,6.06962632]
[1753946046803,0.24427398,3872.1,3872.0,6.06962632]
[1753946047540,0.002,3872.1,3872.0,6.06962632]